bitfinex-derivatives/quotes_ETHF0:USTF0_20260201
["timestamp","ask_amount","ask_price","bid_price","bid_amount"]
[1769934481025,36.47559981,2401.7,2400.7,4.0239697]
[1769934481231,36.26717981,2401.6,2400.7,4.0239697]
[1769934481426,3.85535006,2401.3,2400.7,0.00372932]
[1769934481626,3.85535006,2401.1,2400.1,4.02024038]
[1769934482530,3.85535006,2401.1,2400.1,4.02425569]
[1769934483029,36.47564981,2401.2,2400.1,4.02425569]
[1769934485126,0.20847,2401.2,2400.1,4.02425569]
[1769934488836,36.26717981,2401.4,2400.1,4.02425569]
[1769934489037,36.26717981,2401.5,2400.1,4.02425569]
[1769934489234,36.26717981,2401.9,2400.5,0.20852]
[1769934489537,0.00333026,2402.1,2400.8,3.89733986]
[1769934489738,36.26717981,2402.4,2401.0,3.89733986]
[1769934490135,36.26717981,2402.6,2401.0,4.10581986]
[1769934490439,3.77383237,2402.5,2401.1,3.89733986]
[1769934490633,40.04101218,2402.3,2401.2,8.03733986]
[1769934490827,3.77383237,2402.2,2401.2,8.03733986]
[1769934491135,3.77383237,2402.2,2401.3,3.89733986]
[1769934491336,3.98221237,2402.2,2401.3,3.89733986]
[1769934492534,3.98221237,2402.2,2401.0,3.89733986]
[1769934493737,0.20838,2402.2,2401.0,3.89733986]
[1769934494134,0.0054148,2402.3,2401.0,3.89733986]
[1769934494332,3.77924717,2402.3,2401.0,3.89733986]
[1769934497643,3.77383237,2402.0,2401.1,3.89733986]
[1769934498539,3.77383237,2401.8,2400.7,3.89733986]
[1769934498937,3.98227237,2401.6,2400.7,3.89733986]
[1769934500034,0.20844,2401.6,2400.7,3.89733986]
[1769934500537,40.24940218,2402.1,2400.7,3.89733986]
[1769934500741,3.77383237,2402.0,2400.7,3.89733986]
[1769934502142,0.20839,2402.1,2400.7,3.89733986]
[1769934502334,0.0054148,2402.3,2400.8,10.33630535]
[1769934502534,3.77924717,2402.3,2401.0,3.89733986]
[1769934502739,3.77383237,2402.1,2401.0,3.89733986]
[1769934509048,0.20838,2402.2,2401.0,3.89733986]
[1769934509344,0.0054148,2402.3,2401.0,3.89733986]
[1769934509543,3.77924717,2402.3,2401.0,3.89733986]
[1769934510844,0.0054148,2402.3,2401.0,6.38720161]
[1769934511247,3.77924717,2402.3,2401.2,3.89733986]
[1769934511744,3.98223237,2402.0,2400.9,3.89733986]
[1769934512541,0.2084,2402.0,2400.9,3.89733986]
[1769934516147,0.2084,2402.0,2401.0,3.89733986]
[1769934518049,4.03130836,2402.0,2401.0,3.89733986]
[1769934518251,3.82290836,2401.7,2400.7,3.85637577]
[1769934518554,2.43251196,2402.1,2401.0,3.85637577]
[1769934519349,2.43251196,2402.2,2401.1,3.85637577]
[1769934519550,2.64629676,2402.3,2401.2,3.85637577]
[1769934519752,2.64629676,2402.3,2401.3,3.85637577]
[1769934520551,0.2137848,2402.3,2401.5,3.85637577]
[1769934521657,0.0054148,2402.3,2401.5,3.85637577]
[1769934522847,0.0054148,2402.3,2401.5,8.02337577]
[1769934523052,0.20833,2402.8,2401.7,3.85637577]
[1769934523454,0.20833,2402.8,2401.7,6.34665918]
[1769934523660,36.26717981,2403.2,2401.9,3.80330483]
[1769934523861,40.15656755,2403.2,2401.9,3.80330483]
[1769934524068,3.8928106,2403.2,2401.9,3.80826509]
[1769934527162,3.88938774,2402.8,2401.9,0.00496026]
[1769934527367,3.88938774,2402.4,2401.5,3.80330483]
[1769934527964,3.88938774,2402.4,2401.2,3.80330483]
[1769934528264,4.09774774,2402.4,2401.2,3.80330483]
[1769934528470,4.09774774,2402.4,2401.2,3.80871518]
[1769934534969,3.88938774,2402.7,2401.4,3.80330483]
[1769934535766,0.20834,2402.6,2401.4,3.80330483]
[1769934538276,0.20834,2402.6,2401.4,6.29359234]
[1769934538675,0.20834,2402.6,2401.5,3.80330483]
[1769934539075,0.20834,2402.6,2401.5,7.96930483]
[1769934539474,0.20834,2402.6,2401.6,3.80330483]
[1769934539677,0.20834,2402.6,2401.8,3.80330483]
[1769934542770,36.26717981,2402.9,2401.8,3.80330483]
[1769934542973,40.15656755,2403.0,2401.8,3.80330483]
[1769934543372,4.09770774,2402.9,2401.8,3.80330483]
[1769934544774,0.20832,2402.9,2401.8,3.80330483]
[1769934548075,4.23933612,2402.5,2401.6,4.00597587]
[1769934548475,4.23933612,2402.5,2401.6,8.13597587]
[1769934548679,4.23933612,2402.5,2401.7,4.00597587]
[1769934555286,0.20836,2402.5,2401.7,4.00597587]
[1769934558586,4.23933612,2402.5,2401.7,4.00597587]
[1769934564091,4.23933612,2402.5,2401.8,8.16697587]
[1769934566288,2.43077478,2402.6,2401.9,4.00597587]
[1769934566885,0.20836,2402.5,2401.9,4.00597587]
[1769934571993,36.26717981,2402.8,2401.9,4.00597587]
[1769934572193,36.26717981,2402.9,2401.9,4.00597587]
[1769934572491,36.26717981,2403.0,2402.0,4.00597587]
[1769934573087,40.29815593,2403.0,2402.0,4.00597587]
[1769934573792,4.03097612,2402.9,2402.1,4.00597587]
[1769934578696,4.83904683,2403.2,2401.6,4.0538844]
[1769934578697,3.89460842,2402.5,2401.6,4.0538844]
[1769934579102,36.26717981,2402.7,2401.7,4.0538844]
[1769934579298,3.89460842,2402.8,2401.8,4.0538844]
[1769934581800,4.10293842,2402.8,2401.9,4.192]
[1769934582104,4.10293842,2402.8,2401.9,8.2458844]
[1769934583004,4.10293842,2402.8,2402.0,4.0538844]
[1769934583402,0.20833,2402.8,2402.0,4.0538844]
[1769934588703,3.75380203,2402.8,2402.0,4.0538844]
[1769934588904,3.75380203,2402.6,2402.0,4.0538844]
[1769934590213,0.20834,2402.6,2402.0,4.0538844]
[1769934590908,12.39783866,2404.2,2402.5,5.70618967]
[1769934591203,4.08589389,2405.2,2404.1,1.60668939]
[1769934591405,4.08589389,2405.2,2404.4,1.60668939]
[1769934591603,12.00342286,2405.1,2404.4,1.60668939]
[1769934591800,4.08589389,2405.5,2404.4,1.60668939]
[1769934592007,4.08589389,2405.5,2404.5,6.5459166]
[1769934592008,16.08931675,2405.4,2404.5,6.5459166]
[1769934592512,16.08931675,2405.4,2404.4,1.61127451]
[1769934592810,4.08589389,2405.4,2404.4,0.00458512]
[1769934593714,4.08589389,2405.0,2404.4,3.47758512]
[1769934593911,4.08589389,2405.0,2404.4,0.00458512]
[1769934594212,4.08589389,2404.8,2403.8,2.49281089]
[1769934594410,4.08589389,2404.8,2403.9,8.37]
[1769934595113,4.08589389,2405.3,2403.9,8.37486074]
[1769934595308,4.08589389,2405.2,2403.9,8.37486074]
[1769934595708,16.08931675,2405.1,2403.9,8.37486074]
[1769934595908,4.08589389,2405.1,2403.9,8.37486074]
[1769934596108,12.00342286,2405.0,2403.9,0.00486074]
[1769934596409,12.00342286,2405.0,2404.0,8.37]
[1769934598016,16.08931675,2405.0,2403.9,0.00486074]
[1769934598203,4.08589389,2404.9,2404.0,6.606]
[1769934598607,4.08589389,2404.9,2404.0,6.69135545]
[1769934598811,4.08589389,2404.9,2404.1,0.08535545]
[1769934599411,4.08589389,2404.9,2404.2,2.442]
[1769934599612,4.08589389,2404.9,2404.2,2.52735545]
[1769934599814,8.24829389,2404.9,2404.2,2.52735545]
[1769934600709,8.24829389,2404.9,2404.2,0.08535545]
[1769934600914,0.0036517,2405.5,2404.0,2.442]
[1769934600915,4.1624,2404.6,2404.0,2.442]
[1769934601116,4.0101642,2404.7,2404.0,2.442]
[1769934601307,16.01358706,2404.7,2403.9,0.15632011]
[1769934601513,4.0101642,2404.6,2404.0,2.442]
[1769934601914,12.00342286,2404.5,2403.9,0.00486074]
[1769934602215,4.0101642,2404.9,2403.9,0.15632011]
[1769934602413,16.01358706,2404.9,2403.9,0.15632011]
[1769934602615,16.02005489,2404.9,2403.9,0.15632011]
[1769934602815,4.01663203,2404.8,2404.0,8.263]
[1769934603016,4.01663203,2404.7,2404.0,8.263]
[1769934603207,20.18245489,2404.7,2404.0,8.263]
[1769934603815,20.18245489,2404.7,2404.1,4.205]
[1769934604315,4.1624,2404.6,2404.1,4.205]
[1769934605217,4.1624,2404.6,2404.2,4.207]
[1769934605419,4.00996453,2404.8,2404.2,4.207]
[1769934605617,4.1624,2404.6,2404.2,4.207]
[1769934605821,16.16582286,2404.7,2404.2,4.35885871]
[1769934606014,4.1624,2404.7,2404.2,4.35885871]
[1769934606212,4.1624,2404.7,2404.2,4.207]
[1769934606521,4.08954559,2405.5,2404.3,0.15185871]
[1769934606721,4.08550523,2405.2,2404.3,0.15185871]
[1769934606910,2.95338473,2405.1,2404.3,0.15185871]
[1769934607114,7.03888996,2405.1,2404.3,0.15185871]
[1769934607315,2.95338473,2405.0,2404.3,0.15185871]
[1769934607514,12.00342286,2405.0,2404.3,0.15185871]
[1769934607813,4.08550523,2405.1,2404.3,0.15185871]
[1769934608010,19.04231282,2405.1,2404.3,0.15185871]
[1769934608419,4.08241954,2404.8,2404.0,2.506]
[1769934608621,4.08241954,2404.6,2403.9,4.21286074]
[1769934609015,4.08241954,2404.5,2403.9,0.00486074]
[1769934609219,4.08241954,2404.4,2403.9,3.19386074]
[1769934609613,2.45338473,2404.3,2403.9,3.19386074]
[1769934609810,4.08241954,2404.6,2403.9,3.19386074]
[1769934610318,2.45338473,2404.5,2403.9,3.19386074]
[1769934610716,2.45338473,2404.4,2403.9,3.19386074]
[1769934610916,14.45680759,2404.5,2403.9,3.19386074]
[1769934611317,2.45338473,2404.4,2403.9,3.19386074]
[1769934612615,4.08241954,2404.8,2404.0,0.01934777]
[1769934612917,14.45680759,2404.7,2404.0,0.01934777]
[1769934613422,0.20813,2405.1,2404.0,0.01934777]
[1769934613423,4.07274566,2405.1,2404.0,0.01934777]
[1769934613614,4.07274566,2405.1,2403.9,3.19386074]
[1769934613615,4.07274566,2405.4,2404.2,0.01934777]
[1769934613820,16.07616852,2405.4,2404.2,0.01934777]
[1769934614221,12.00342286,2405.3,2404.2,0.01934777]
[1769934614523,0.0036517,2405.5,2404.6,0.01934777]
[1769934614721,0.0036517,2405.5,2404.7,8.39839597]
[1769934615322,0.0036517,2405.5,2404.8,0.02639597]
[1769934615723,2.45338473,2405.4,2404.6,2.49281089]
[1769934615923,12.00707456,2405.5,2404.6,2.49281089]
[1769934615924,18.52968085,2405.5,2404.7,8.374]
[1769934616226,2.45338473,2405.4,2404.7,8.374]
[1769934617128,2.45338473,2405.3,2404.7,8.38341641]
[1769934617328,2.45338473,2405.4,2404.7,10.8762273]
[1769934617725,2.45338473,2405.3,2404.7,2.49281089]
[1769934617921,6.53109606,2405.4,2404.8,4.218]
[1769934618323,14.45680759,2405.3,2404.8,4.22741641]
[1769934618723,2.45338473,2405.2,2404.8,4.218]
[1769934618923,18.53769136,2405.3,2404.7,2.49281089]
[1769934619232,2.45338473,2404.8,2404.6,8.42360484]
[1769934619426,12.00342286,2405.4,2404.6,4.52407154]
[1769934619728,2.45338473,2405.2,2404.8,0.30107154]
[1769934619930,12.00342286,2405.3,2404.9,0.30107154]
[1769934620126,2.45338473,2405.2,2404.9,0.30107154]
[1769934620428,2.45338473,2405.3,2405.0,6.6801035]
[1769934620628,2.45338473,2405.3,2405.1,2.8103941]
[1769934620830,12.00342286,2405.2,2404.8,3.68867799]
[1769934621029,12.00342286,2405.4,2404.8,3.68867799]
[1769934621230,3.92051404,2405.3,2404.7,7.92067799]
[1769934621834,10.5652801,2405.2,2404.9,0.323811]
[1769934622125,10.5652801,2405.4,2405.0,4.01248899]
[1769934622631,0.0036517,2405.5,2405.0,4.01248899]
[1769934622831,10.5652801,2405.4,2405.0,4.01248899]
[1769934624233,10.5652801,2405.4,2405.0,3.68867799]
[1769934624432,3.90645489,2405.3,2404.9,3.68867799]
[1769934624933,14.47173499,2405.3,2404.9,3.68867799]
[1769934625924,10.5652801,2405.3,2404.9,3.68867799]
[1769934626936,3.91536504,2405.5,2404.9,3.68867799]
[1769934627130,3.91479214,2405.3,2404.9,3.68867799]
[1769934627534,3.91844384,2405.5,2404.9,3.68867799]
[1769934627732,14.48007224,2405.4,2404.9,3.68867799]
[1769934627927,10.5652801,2405.4,2404.9,3.68867799]
[1769934628134,3.91479214,2406.0,2405.0,0.3352548]
[1769934628434,3.91479214,2406.0,2405.2,3.68867799]
[1769934628635,9.17357488,2405.9,2405.2,3.68867799]
[1769934629232,9.17650406,2405.9,2405.2,3.68867799]
[1769934629433,9.17650406,2405.9,2405.4,3.68867799]
[1769934629833,4.08241954,2405.8,2405.4,3.68867799]
[1769934630037,4.6595226,2405.8,2404.6,16.52781853]
[1769934630333,4.6595226,2405.8,2404.3,0.20819]
[1769934631634,4.6595226,2405.8,2404.5,0.20817]
[1769934632238,4.6595226,2405.8,2404.1,7.6474138]
[1769934632431,4.6595226,2405.8,2404.2,0.2082]
[1769934632835,4.6595226,2405.8,2404.3,3.95292288]
[1769934633035,4.6595226,2405.8,2404.4,3.95292288]
[1769934633335,4.6595226,2405.8,2404.5,3.95292288]
[1769934633534,4.6595226,2405.8,2404.6,3.95292288]
[1769934633737,4.6595226,2405.8,2403.9,4.17586074]
[1769934633738,4.6595226,2405.8,2404.7,3.95292288]
[1769934633942,4.29049954,2405.6,2404.0,3.95292288]
[1769934634238,4.29049954,2405.6,2404.1,3.95292288]
[1769934634435,4.29051954,2405.4,2404.2,3.95292288]
[1769934634636,4.29051954,2405.4,2404.0,3.95292288]
[1769934634841,3.68107133,2404.9,2403.9,0.00486074]
[1769934635342,3.68107133,2404.7,2403.9,0.00486074]
[1769934635741,0.57710306,2404.6,2403.9,0.00486074]
[1769934636137,0.57710306,2404.6,2403.9,3.83465589]
[1769934638347,4.65600599,2404.6,2403.9,0.00486074]
[1769934639143,4.65600599,2404.6,2403.3,3.89171534]
[1769934639937,4.86417599,2404.6,2403.0,3.89657608]
[1769934640138,4.86417599,2404.6,2402.5,7.4392038]
[1769934640139,4.65600599,2404.6,2403.3,3.90006202]
[1769934644351,4.07890293,2404.6,2403.3,3.90006202]
[1769934644754,3.8385271,2404.4,2403.3,3.90006202]
[1769934645148,3.8385271,2404.2,2403.3,3.90006202]
[1769934645348,3.84295154,2404.2,2403.3,3.90006202]
[1769934647454,0.57710306,2404.1,2403.3,3.90006202]
[1769934648256,4.41563016,2404.1,2403.3,3.90006202]
[1769934649355,4.41563016,2404.1,2403.3,0.00348594]
[1769934652562,3.8385271,2404.1,2403.3,0.00348594]
[1769934652860,3.8385271,2403.9,2403.3,0.00348594]
[1769934653059,3.8385271,2403.9,2402.7,3.79977275]
[1769934653264,3.8385271,2403.7,2402.7,3.79977275]
[1769934653658,3.8385271,2403.5,2402.7,3.79977275]
[1769934654059,0.57710306,2403.4,2402.7,3.80304242]
[1769934654554,0.07710306,2403.4,2402.7,3.80304242]
[1769934656068,3.8385271,2403.8,2402.7,3.80304242]
[1769934658069,3.8385271,2404.1,2402.8,3.7354037]
[1769934658359,3.8385271,2404.1,2402.9,3.7354037]
[1769934659963,3.8385271,2404.1,2403.0,3.73706653]
[1769934660769,3.8385271,2404.1,2403.1,3.72319839]
[1769934661366,3.8385271,2404.1,2403.2,3.72319839]
[1769934662167,3.8385271,2404.4,2403.7,3.72319839]
[1769934663268,0.00320829,2404.4,2403.8,7.69809612]
[1769934663968,0.00320829,2404.4,2403.8,11.41739954]
[1769934664174,3.84173539,2404.4,2403.9,3.9780665]
[1769934665070,0.00320829,2404.4,2403.8,7.69736992]
[1769934665270,0.00320829,2404.4,2403.9,7.68100328]
[1769934665472,3.8385271,2404.7,2404.0,11.4003067]
[1769934665672,3.8385271,2404.7,2404.1,3.9780665]
[1769934666676,3.84212699,2404.7,2404.1,3.9780665]
[1769934667275,3.84212699,2404.7,2404.1,4.08129929]
[1769934667977,3.84212699,2404.7,2404.0,4.08129929]
[1769934668167,3.84212699,2404.7,2403.9,4.08129929]
[1769934669277,3.84402131,2405.6,2404.6,7.39875012]
[1769934669574,3.84402131,2405.6,2404.7,7.80060271]
[1769934669875,3.84402131,2405.6,2404.8,4.08129929]
[1769934670273,3.84833086,2405.6,2404.8,0.00348657]
[1769934679185,3.84833086,2405.6,2404.3,3.71930342]
[1769934679483,3.84833086,2405.6,2404.2,3.71930342]
[1769934680284,3.84833086,2405.6,2404.2,3.72372975]
[1769934680786,3.84833086,2405.6,2404.3,2.47500588]
[1769934683287,3.84833086,2405.6,2404.4,2.47500588]
[1769934683483,3.84833086,2405.6,2404.3,2.47500588]
[1769934683683,4.05641086,2405.6,2404.3,2.47500588]
[1769934683879,4.05641086,2405.6,2404.2,2.47943221]
[1769934684383,4.05641086,2405.6,2404.3,2.47500588]
[1769934686188,3.84402131,2405.4,2404.3,2.47500588]
[1769934686388,3.84402131,2405.4,2404.2,2.47943221]
[1769934687983,3.84402131,2405.4,2404.2,6.17738671]
[1769934688383,3.84402131,2405.4,2404.2,2.47943221]
[1769934689291,3.84402131,2405.4,2404.3,2.47500588]
[1769934691394,3.84402131,2405.4,2404.3,6.55630517]
[1769934691891,3.84402131,2405.4,2404.3,10.25425967]
[1769934692092,3.84402131,2405.4,2404.5,3.6979545]
[1769934693696,3.84402131,2405.4,2404.5,7.77925379]
[1769934694396,3.84402131,2405.4,2404.5,10.25425967]
[1769934694794,3.84402131,2405.4,2404.5,6.17296038]
[1769934694995,3.84402131,2405.4,2404.5,10.25425967]
[1769934695191,3.84402131,2405.4,2404.5,6.17296038]
[1769934695393,3.84402131,2405.4,2404.5,10.25425967]
[1769934695595,3.84402131,2405.4,2404.6,3.6979545]
[1769934695797,3.84833086,2405.6,2404.8,6.17296038]
[1769934695998,3.84833086,2405.6,2404.8,6.55630517]
[1769934697196,3.84833086,2405.6,2404.8,2.47500588]
[1769934699195,3.84833086,2405.6,2404.7,7.39296163]
[1769934699196,3.84833086,2405.6,2404.9,6.55379314]
[1769934699498,3.84833086,2405.6,2404.7,7.39296163]
[1769934699499,3.84833086,2405.6,2404.8,2.47500588]
[1769934699699,3.84833086,2405.6,2404.9,4.07878829]
[1769934699898,3.84833086,2405.6,2404.8,2.47500588]
[1769934700099,3.84833086,2405.6,2404.9,4.07080489]
[1769934700296,3.84833086,2405.6,2404.9,2.47500588]
[1769934704404,0.00430955,2405.6,2405.0,3.70725844]
[1769934704601,3.93954781,2405.6,2405.1,4.06643082]
[1769934704802,3.93954781,2405.6,2405.1,4.06644129]
[1769934705001,3.93954781,2405.6,2405.0,6.18226432]
[1769934705201,3.93954781,2405.6,2405.1,4.06643184]
[1769934705496,3.93954781,2405.6,2405.0,6.18226432]
[1769934705700,3.93523826,2405.3,2404.7,3.71930342]
[1769934705898,3.93523826,2405.3,2404.5,3.71930342]
[1769934706504,4.14334826,2405.3,2404.3,3.71930342]
[1769934706893,4.14334826,2405.3,2404.3,7.42656186]
[1769934707100,4.14334826,2405.3,2404.4,3.70725844]
[1769934709301,0.20811,2405.3,2404.5,3.70725844]
[1769934713204,3.93523826,2405.5,2404.5,3.70725844]
[1769934713411,0.00430955,2405.6,2404.7,3.70725844]
[1769934713606,0.00430955,2405.6,2404.9,3.70725844]
[1769934715214,0.00430955,2405.6,2404.9,7.42656186]
[1769934715403,0.00430955,2405.6,2405.0,3.70725844]
[1769934715912,3.43954781,2405.9,2405.0,3.70725844]
[1769934716503,10.38802,2406.4,2405.1,3.70725844]
[1769934716710,0.20802,2406.4,2405.1,3.70725844]
[1769934716907,0.21305196,2406.4,2405.1,3.70725844]
[1769934717708,0.21305196,2406.4,2405.2,3.70725844]
[1769934717908,3.93523826,2406.3,2405.2,3.70725844]
[1769934719003,3.93523826,2406.3,2405.4,3.70725844]
[1769934720710,3.94027022,2406.4,2405.4,3.70725844]
[1769934722911,0.00503196,2406.4,2405.4,3.70725844]
[1769934724513,0.00503196,2406.4,2405.5,3.70725844]
[1769934725313,0.00503196,2406.4,2405.6,3.70725844]
[1769934726511,3.93523826,2406.3,2405.6,3.70725844]
[1769934726902,0.00503196,2406.4,2405.6,3.70725844]
[1769934729015,3.83186181,2407.1,2405.7,3.87226341]
[1769934729209,3.83186181,2407.1,2405.8,3.87226341]
[1769934730114,3.83549526,2407.1,2405.8,3.87226341]
[1769934731113,3.83549526,2407.1,2405.9,3.87226341]
[1769934731309,3.83549526,2407.1,2405.9,3.87549122]
[1769934734221,0.00363345,2407.1,2405.9,3.87549122]
[1769934734521,0.00363345,2407.1,2406.0,3.87226341]
[1769934739923,0.00363345,2407.1,2406.1,6.37826341]
[1769934740122,0.00363345,2407.1,2406.2,3.87226341]
[1769934740322,0.00363345,2407.1,2406.2,6.37826341]
[1769934740530,0.00363345,2407.1,2406.3,3.87226341]
[1769934742828,3.83186181,2407.8,2406.4,3.87226341]
[1769934743024,3.83186181,2407.9,2406.7,3.87226341]
[1769934743830,3.83583556,2407.9,2406.7,3.87226341]
[1769934746530,3.83583556,2407.9,2406.8,3.87226341]
[1769934746734,3.83583556,2407.9,2406.9,3.87226341]
[1769934747934,0.00397375,2407.9,2406.9,3.87226341]
[1769934749339,3.83583556,2407.9,2406.9,3.87226341]
[1769934750426,0.00397375,2407.9,2406.9,3.87226341]
[1769934751433,3.83583556,2407.9,2406.9,3.87226341]
[1769934758145,3.83583556,2407.9,2407.0,3.69769784]
[1769934758440,3.83583556,2407.9,2405.7,4.07679409]
[1769934758441,1.59946889,2407.7,2405.7,4.07679409]
[1769934758648,0.20796,2407.0,2405.7,4.07679409]
[1769934758944,0.20797,2406.9,2405.7,4.07679409]
[1769934759342,2.44104341,2406.8,2405.2,4.07657437]
[1769934759544,2.64905341,2406.5,2405.2,4.07657437]
[1769934760640,0.12434632,2406.3,2405.2,4.08095035]
[1769934762834,0.20801,2406.4,2405.4,4.02673434]
[1769934763039,0.10011951,2406.3,2405.4,4.02673434]
[1769934763239,0.10011951,2406.2,2405.3,4.23721664]
[1769934763434,0.10324959,2406.2,2405.2,4.03122816]
[1769934763841,0.1026141,2406.1,2405.2,8.2684448]
[1769934764041,0.1026141,2406.1,2405.3,4.02685218]
[1769934765342,0.21116008,2406.2,2405.4,4.035745]
[1769934765943,0.29598853,2406.2,2405.4,4.035745]
[1769934766346,0.08482845,2406.1,2405.3,4.23721664]
[1769934766545,0.08482845,2406.0,2405.2,0.00437598]
[1769934766745,0.08482845,2406.0,2405.2,8.22930135]
[1769934768148,0.20806,2405.9,2405.2,8.22930135]
[1769934768548,0.20806,2405.9,2405.2,12.38290135]
[1769934768749,0.20806,2405.9,2405.3,3.98770873]
[1769934769645,0.20806,2405.9,2405.2,0.00437598]
[1769934769844,0.20806,2405.9,2405.2,4.15797598]
[1769934771848,0.20806,2405.9,2405.2,8.09320827]
[1769934773448,0.20806,2405.9,2405.3,4.1536]
[1769934776646,0.20798,2406.8,2406.2,2.52361029]
[1769934776844,0.208,2406.6,2405.3,4.23721664]
[1769934777049,0.208,2406.5,2405.3,4.23721664]
[1769934777249,2.36987453,2406.5,2405.4,4.1536]
[1769934777550,2.37399387,2406.5,2405.5,4.1536]
[1769934777951,2.37399387,2406.5,2405.6,4.1536]
[1769934778250,2.36989453,2406.4,2405.5,4.1536]
[1769934778651,2.36989453,2406.4,2405.6,4.1536]
[1769934778846,2.36989453,2406.4,2405.7,4.1536]
[1769934779047,2.36989453,2406.4,2405.6,3.7597432]
[1769934779248,2.36989453,2406.4,2405.6,7.9133432]
[1769934779444,2.36989453,2406.4,2405.7,7.9133432]
[1769934779639,2.36989453,2406.4,2405.7,3.7597432]
[1769934779947,2.36989453,2406.4,2405.3,3.7597432]
[1769934780151,2.36989453,2406.4,2405.5,3.7597432]
[1769934780545,2.36989453,2406.4,2405.6,7.99695984]
[1769934780848,2.36989453,2406.4,2405.7,3.7597432]
[1769934781052,0.20802,2406.4,2405.8,12.15055984]
[1769934781250,0.20802,2406.4,2405.9,3.7597432]
[1769934781652,0.20802,2406.4,2405.9,7.9133432]
[1769934781845,0.20802,2406.4,2406.0,3.7597432]
[1769934782052,2.34184578,2406.3,2405.9,3.72032]
[1769934782246,2.34184578,2406.3,2406.0,3.7597432]
[1769934782247,0.20802,2406.3,2406.0,3.7597432]
[1769934782648,2.44104341,2406.9,2406.3,3.7597432]
[1769934782851,0.208,2406.6,2406.0,4.23721664]
[1769934783053,0.208,2406.6,2406.0,7.52832664]
[1769934783249,0.208,2406.6,2406.2,3.29111]
[1769934783553,3.43423166,2406.6,2406.1,3.29111]
[1769934783747,3.43761737,2406.6,2406.1,3.29111]
[1769934783951,3.22623166,2406.5,2405.2,0.00437598]
[1769934784249,5.66727507,2406.5,2405.3,4.23721664]
[1769934784455,0.35500166,2406.4,2405.3,4.23721664]
[1769934784949,0.35500166,2406.4,2405.4,3.87298989]
[1769934785151,0.20804,2406.1,2405.4,3.87298989]
[1769934785345,0.20804,2406.1,2405.2,0.00437598]
[1769934785346,0.20804,2406.1,2405.5,8.11020653]
[1769934785549,0.20804,2406.1,2405.5,3.87298989]
[1769934785748,0.20804,2406.1,2405.6,8.11020653]
[1769934785949,0.20804,2406.1,2405.6,3.87298989]
[1769934786250,0.20804,2406.1,2405.7,3.87298989]
[1769934788255,2.44104341,2406.0,2405.7,3.87298989]
[1769934788449,2.44104341,2406.0,2405.7,2.70286027]
[1769934790951,36.82369129,2406.1,2405.9,3.84585483]
[1769934791154,0.20804,2406.1,2405.9,3.84585483]
[1769934791454,36.82369129,2406.1,2405.3,4.23721664]
[1769934791654,0.20804,2406.1,2405.3,4.23721664]
[1769934793655,0.20804,2406.1,2405.4,3.84585483]
[1769934794155,0.20804,2406.1,2405.4,8.08307147]
[1769934794344,0.20804,2406.1,2405.5,3.84585483]
[1769934794750,0.20804,2406.1,2405.7,3.84585483]
[1769934795553,0.20804,2406.1,2405.3,3.84585483]
[1769934795758,40.35559211,2406.0,2405.3,8.08307147]
[1769934795954,3.94801082,2405.8,2405.3,4.23721664]
[1769934796356,40.56366211,2405.8,2405.3,4.23721664]
[1769934796952,3.94802082,2405.6,2405.2,4.23722262]
[1769934797153,40.56367211,2405.6,2404.8,3.84585483]
[1769934797552,40.56367211,2405.6,2404.9,7.65357745]
[1769934797756,40.56367211,2405.6,2404.9,3.84585483]
[1769934797956,40.56367211,2405.6,2404.9,7.65357745]
[1769934798156,40.56367211,2405.6,2404.9,7.657331]
[1769934798358,3.94802082,2405.6,2404.9,7.657331]
[1769934799056,0.20808,2405.6,2405.0,3.84585483]
[1769934799461,3.73994082,2405.3,2404.9,0.00375355]
[1769934799757,36.61565129,2405.5,2405.0,3.84585483]
[1769934799963,36.61565129,2405.7,2405.0,3.84585483]
[1769934800159,36.61565129,2405.7,2405.1,7.22892745]
[1769934800358,36.82373129,2405.7,2405.1,7.22892745]
[1769934802165,0.20808,2405.7,2405.1,7.22892745]
[1769934802561,0.20808,2405.7,2405.1,3.84585483]
[1769934802763,0.20808,2405.7,2405.2,7.22892745]
[1769934802966,0.20808,2405.7,2405.2,3.84585483]
[1769934803369,0.20808,2405.7,2405.2,3.41311483]
[1769934803668,3.94802082,2405.7,2405.2,2.95558262]
[1769934803865,3.94802082,2405.7,2405.2,2.10060262]
[1769934804070,3.94802082,2405.7,2405.2,1.24576262]
[1769934804269,3.94802082,2405.7,2405.2,0.39001262]
[1769934804470,3.94802082,2405.7,2404.9,0.00375355]
[1769934805577,3.94802082,2405.7,2404.9,3.84960838]
[1769934806278,36.61565129,2405.8,2404.9,3.84960838]
[1769934806581,3.73994082,2406.1,2405.1,3.84585483]
[1769934806780,3.73994082,2405.9,2405.1,3.84585483]
[1769934807874,0.20805,2406.0,2405.1,3.84585483]
[1769934810978,4.88208683,2406.4,2405.1,3.84585483]
[1769934810979,3.73994082,2405.8,2405.1,3.84585483]
[1769934811178,3.94801082,2405.7,2404.9,3.84960838]
[1769934816278,0.20807,2405.7,2404.9,3.84960838]
[1769934824990,4.88208683,2406.1,2405.0,3.92112351]
[1769934825188,0.20804,2406.2,2405.3,3.92112351]
[1769934825382,4.155564,2406.2,2405.3,3.92112351]
[1769934825583,0.20804,2406.2,2405.3,3.92112351]
[1769934826689,8.82961083,2406.5,2405.3,3.92112351]
[1769934828294,3.947524,2406.5,2405.3,3.92112351]
[1769934834590,5.09347254,2406.6,2405.4,3.92112351]
[1769934834790,0.21138571,2406.6,2405.4,3.92112351]
[1769934835294,0.21138571,2406.6,2405.5,1.60167461]
[1769934835595,0.21138571,2406.6,2405.6,3.92112351]
[1769934836490,4.15890971,2406.6,2405.6,3.92112351]
[1769934846597,0.21138571,2406.6,2405.6,3.92112351]
[1769934847605,3.86714395,2406.3,2405.0,3.69768532]
[1769934849204,3.86714395,2406.1,2405.0,3.69768532]
[1769934850109,3.86714395,2406.1,2405.1,3.69768532]
[1769934850309,0.20804,2406.2,2405.1,3.69768532]
[1769934850510,4.07518395,2406.2,2405.1,3.69768532]
[1769934852106,4.07518395,2406.2,2405.2,3.69768532]
[1769934854313,4.07518395,2406.2,2405.2,9.88146553]
[1769934856815,4.07518395,2406.2,2405.3,3.69768532]
[1769934857415,3.86714395,2406.4,2405.3,3.69768532]
[1769934857611,3.86714395,2406.4,2405.5,3.69768532]
[1769934858818,3.86714395,2407.0,2406.1,3.69768532]
[1769934859018,3.86714395,2407.0,2406.1,6.17051662]
[1769934859212,3.86714395,2407.0,2406.2,3.69768532]
[1769934859918,3.87048907,2407.0,2406.2,3.69768532]
[1769934862414,3.86714395,2407.4,2406.2,3.69768532]
[1769934862611,3.86714395,2407.7,2406.4,3.69768532]
[1769934862819,3.86714395,2407.7,2406.5,3.69768532]
[1769934863418,3.87068264,2407.7,2406.5,3.69768532]
[1769934864218,0.00353869,2407.7,2406.5,3.69768532]
[1769934864419,0.00353869,2407.7,2406.6,3.69768532]